bitfinex-derivatives/quotes_BTCF0:USTF0_20250602
["timestamp","ask_amount","ask_price","bid_price","bid_amount"]
[1748881275431,1.1154287,104310.0,104300.0,0.99811083]
[1748881276032,1.1154287,104310.0,104300.0,0.99817916]
[1748881276334,1.1154287,104310.0,104300.0,0.44317916]
[1748881276635,1.1154287,104310.0,104300.0,0.93717307]
[1748881276933,1.1154287,104310.0,104300.0,0.87817916]
[1748881277240,1.1154287,104310.0,104300.0,0.81717307]
[1748881278733,0.9083105,104310.0,104300.0,0.81717307]
[1748881279439,0.9083105,104310.0,104300.0,0.7668659]
[1748881279635,0.9083105,104310.0,104300.0,0.81718695]
[1748881279838,0.91256004,104310.0,104300.0,0.32319304]
[1748881280039,0.72090984,104310.0,104300.0,0.87819304]
[1748881280236,0.36010984,104310.0,104300.0,1.66611124]
[1748881280461,0.36010984,104310.0,104300.0,1.79331124]
[1748881280832,0.3558603,104310.0,104300.0,1.79331124]
[1748881281338,0.3558603,104310.0,104300.0,1.79631124]
[1748881281537,0.3548603,104310.0,104300.0,1.73830515]
[1748881282640,0.3548603,104310.0,104300.0,1.65286515]
[1748881282836,0.3548603,104310.0,104300.0,1.71391714]
[1748881283332,0.3548603,104310.0,104300.0,1.65286515]
[1748881283639,0.3548603,104310.0,104300.0,1.71391913]
[1748881283841,0.3548603,104310.0,104300.0,1.75511913]
[1748881283842,0.35910984,104310.0,104300.0,1.75511913]
[1748881285351,0.23180984,104310.0,104300.0,1.81213463]
[1748881286038,0.2275603,104310.0,104300.0,1.81213463]
[1748881286849,0.13581871,104310.0,104300.0,2.26013095]
[1748881287053,0.01955591,104330.0,104320.0,0.1916321]
[1748881287054,0.0426,104330.0,104320.0,0.1916321]
[1748881287244,0.0468,104340.0,104330.0,0.1916137]
[1748881287555,0.15546711,104340.0,104330.0,1.29674165]
[1748881287854,0.11066711,104340.0,104330.0,1.2357319]
[1748881288045,0.11066711,104340.0,104330.0,1.3089771]
[1748881288246,0.11066711,104340.0,104330.0,1.28604887]
[1748881288550,0.11066711,104340.0,104330.0,1.07893067]
[1748881288850,0.21266711,104340.0,104330.0,1.28604887]
[1748881289040,0.21266711,104340.0,104330.0,1.07893067]
[1748881289240,0.21266711,104340.0,104330.0,1.2909084]
[1748881289241,0.40226251,104340.0,104330.0,1.2909084]
[1748881289438,0.44536251,104340.0,104330.0,1.2939084]
[1748881289634,0.65248071,104340.0,104330.0,1.2520084]
[1748881289849,0.44536251,104340.0,104330.0,0.64677143]
[1748881290033,0.44536251,104340.0,104330.0,1.20165143]
[1748881290235,0.44536251,104340.0,104330.0,1.20445143]
[1748881290236,0.48686251,104340.0,104330.0,1.20445143]
[1748881290448,0.48686251,104340.0,104330.0,1.20465143]
[1748881290647,0.48686251,104340.0,104330.0,1.24965143]
[1748881292152,0.48686251,104340.0,104330.0,1.1886937]
[1748881292360,0.53056251,104340.0,104330.0,1.1886937]
[1748881295258,0.89561205,104340.0,104330.0,0.6338137]
[1748881295554,0.89561205,104340.0,104330.0,1.1886937]
[1748881297756,0.89561205,104340.0,104330.0,1.3958119]
[1748881297952,0.70401665,104340.0,104330.0,1.3958119]
[1748881298154,0.89561205,104340.0,104330.0,1.4396119]
[1748881298352,0.89561205,104340.0,104330.0,1.2324937]
[1748881301563,0.53481205,104340.0,104330.0,1.2324937]
[1748881302261,0.53056251,104340.0,104330.0,1.2324937]
[1748881302455,0.33896711,104340.0,104330.0,1.4396119]
[1748881302762,0.33896711,104340.0,104330.0,1.8004119]
[1748881302965,0.21066711,104340.0,104330.0,1.8004119]
[1748881303465,0.21066711,104340.0,104330.0,1.85123698]
[1748881304570,0.21066711,104340.0,104330.0,2.14243698]
[1748881305656,0.21066711,104340.0,104330.0,1.8844937]
[1748881305851,0.21066711,104340.0,104330.0,2.14243629]
[1748881306961,0.21066711,104340.0,104330.0,1.93531809]
[1748881307173,0.21066711,104340.0,104330.0,2.14215629]
[1748881307368,0.21066711,104340.0,104330.0,1.69439629]
[1748881307560,0.21066711,104340.0,104330.0,2.14215629]
[1748881307755,0.21066711,104340.0,104330.0,1.69439629]
[1748881307962,0.40226251,104340.0,104330.0,2.14235629]
[1748881308165,0.84696251,104340.0,104330.0,1.53063809]
[1748881308466,0.84696251,104340.0,104330.0,1.48563809]
[1748881308467,1.09478071,104340.0,104330.0,1.48563809]
[1748881308667,1.09478071,104340.0,104330.0,1.4346137]
[1748881308668,0.88766251,104340.0,104330.0,1.4346137]
[1748881308867,0.88766251,104340.0,104330.0,1.4769137]
[1748881309262,0.89191205,104340.0,104330.0,1.4769137]
[1748881310565,0.89191205,104340.0,104330.0,1.3928319]
[1748881310765,0.89191205,104340.0,104330.0,1.4536893]
[1748881311364,0.88766251,104340.0,104330.0,1.4536893]
[1748881311571,0.33526711,104340.0,104330.0,1.4536893]
[1748881311865,0.52686241,104340.0,104330.0,1.4536893]
[1748881312483,0.33526711,104340.0,104330.0,1.4536893]
[1748881312864,0.52686241,104340.0,104330.0,1.4536893]
[1748881313064,0.33526711,104340.0,104330.0,1.4536893]
[1748881313367,0.52686241,104340.0,104330.0,1.29746944]
[1748881313564,0.52686241,104340.0,104330.0,1.50458764]
[1748881313867,0.52686241,104340.0,104330.0,1.29746944]
[1748881314073,0.33526711,104340.0,104330.0,1.29746944]
[1748881315582,0.21066711,104340.0,104330.0,1.87755912]
[1748881315766,0.21066711,104340.0,104330.0,1.92236699]
[1748881316270,0.21066711,104340.0,104330.0,2.21356699]
[1748881316967,0.21066711,104340.0,104330.0,2.21377562]
[1748881317367,0.21066711,104340.0,104330.0,2.00665742]
[1748881317572,0.21066711,104340.0,104330.0,2.21377562]
[1748881318078,0.21066711,104340.0,104330.0,2.21357562]
[1748881318565,0.21491665,104340.0,104330.0,2.21357562]
[1748881318776,0.21491665,104340.0,104330.0,2.21377562]
[1748881319468,0.21066711,104340.0,104330.0,2.21377562]
[1748881320663,0.21066711,104340.0,104330.0,2.16890138]
[1748881320863,0.21066711,104340.0,104330.0,2.2065669]
[1748881321063,0.17721571,104340.0,104330.0,2.5095291]
[1748881321270,0.17721571,104340.0,104330.0,2.62121435]
[1748881321271,0.03282271,104340.0,104330.0,2.62121435]
[1748881321460,0.07762742,104340.0,104330.0,2.62121435]
[1748881321667,0.00014373,104350.0,104340.0,0.1915951]
[1748881321984,0.10060247,104350.0,104340.0,1.5258259]
[1748881322570,0.10060247,104350.0,104340.0,1.51099611]
[1748881322874,0.20060247,104350.0,104340.0,1.57166022]
[1748881323076,0.20060247,104350.0,104340.0,1.57266022]
[1748881323666,0.20060247,104350.0,104340.0,1.51299611]
[1748881323874,0.20060247,104350.0,104340.0,1.66879497]
[1748881324075,0.20260247,104350.0,104340.0,1.73845908]
[1748881324260,0.20260247,104350.0,104340.0,1.67779497]
[1748881324469,0.20360247,104350.0,104340.0,0.88158668]
[1748881324702,0.60229747,104350.0,104340.0,0.82685971]
[1748881324866,1.08999747,104350.0,104340.0,1.23010539]
[1748881325069,1.08999747,104350.0,104340.0,1.22990539]
[1748881325368,1.08999747,104350.0,104340.0,1.23010539]
[1748881325369,0.88287927,104350.0,104340.0,1.23010539]
[1748881325772,0.90191262,104350.0,104340.0,0.69462539]
[1748881326070,1.38514033,104350.0,104340.0,0.95071029]
[1748881326278,1.38514033,104350.0,104340.0,1.14250539]
[1748881326461,1.38514033,104350.0,104340.0,0.6646751]
[1748881326773,1.38938987,104350.0,104340.0,0.6646751]
[1748881326974,1.38738987,104350.0,104340.0,0.6546751]
[1748881327274,1.38638987,104350.0,104340.0,0.6416751]
[1748881328075,1.38638987,104350.0,104340.0,0.1937951]
[1748881328268,1.61638987,104350.0,104340.0,0.6416751]
[1748881328677,1.61638987,104350.0,104340.0,0.6414751]
[1748881329016,1.40638987,104350.0,104340.0,0.6416751]
[1748881330775,1.40638987,104350.0,104340.0,0.1937951]
[1748881330977,1.40638987,104350.0,104340.0,0.6416751]
[1748881334031,1.40638987,104350.0,104340.0,0.45008]
[1748881334183,1.40638987,104350.0,104340.0,0.6416752]
[1748881335275,1.40638987,104350.0,104340.0,0.0022]
[1748881335276,1.50222587,104350.0,104340.0,0.0022]
[1748881335480,1.50222587,104350.0,104320.0,0.48723628]
[1748881335481,0.1916135,104330.0,104320.0,0.48458533]
[1748881335677,0.83564121,104330.0,104320.0,0.90534188]
[1748881335874,1.06714215,104330.0,104320.0,0.30087213]
[1748881336075,1.11714215,104330.0,104320.0,0.74855213]
[1748881336282,1.11714215,104330.0,104320.0,0.74875213]
[1748881336485,1.21714215,104330.0,104320.0,0.74875213]
[1748881336777,1.29683666,104330.0,104320.0,0.13325263]
[1748881336978,1.29683666,104330.0,104320.0,0.02645263]
[1748881337170,1.29683666,104330.0,104320.0,0.02625263]
[1748881337378,1.29683666,104330.0,104320.0,0.02645263]
[1748881337590,1.29583666,104330.0,104320.0,0.01245263]
[1748881337787,1.29583666,104330.0,104320.0,0.20408443]
[1748881338287,1.29383666,104330.0,104320.0,0.19608443]
[1748881338471,1.29383666,104330.0,104320.0,0.19608463]
[1748881338472,1.01060895,104330.0,104320.0,0.19608463]
[1748881338782,1.29383666,104330.0,104320.0,0.19608463]
[1748881339171,1.49383666,104330.0,104320.0,0.19608463]
[1748881339380,1.16060895,104330.0,104320.0,0.19608463]
[1748881339578,1.16060895,104330.0,104320.0,0.27808463]
[1748881340890,1.16485849,104330.0,104320.0,0.27808463]
[1748881342081,1.16485849,104330.0,104320.0,0.29245463]
[1748881343076,0.80405849,104330.0,104320.0,0.29245463]
[1748881343276,0.53575048,104330.0,104320.0,0.29245463]
[1748881343485,1.08816408,104330.0,104320.0,0.30245463]
[1748881343784,0.72311454,104330.0,104320.0,0.30245463]
[1748881344382,1.08391454,104330.0,104320.0,0.30245463]
[1748881344780,0.76470094,104330.0,104320.0,0.30245463]
[1748881344982,0.40390094,104330.0,104320.0,0.64245463]
[1748881345190,0.59551444,104330.0,104320.0,0.64245463]
[1748881345587,0.67801444,104330.0,104320.0,0.45245463]
[1748881345988,1.03881444,104330.0,104320.0,0.45245463]
[1748881346187,0.67801444,104330.0,104320.0,0.45245463]
[1748881346884,1.04306398,104330.0,104320.0,0.45245463]
[1748881353787,0.84306398,104330.0,104320.0,0.45245463]
[1748881354290,0.20815048,104330.0,104320.0,0.45245463]
[1748881354479,0.39976408,104330.0,104320.0,0.45245463]
[1748881354680,0.39976408,104330.0,104320.0,0.51343118]
[1748881355094,0.39551454,104330.0,104320.0,0.51343118]
[1748881355287,0.39551454,104330.0,104320.0,0.45245463]
[1748881355695,0.39551454,104330.0,104320.0,0.51343118]
[1748881355997,0.39976408,104330.0,104320.0,0.51343118]
[1748881356385,0.20815048,104330.0,104320.0,1.10349977]
[1748881356687,0.20815048,104330.0,104320.0,1.74455324]
[1748881358392,0.20815048,104330.0,104320.0,1.78929922]
[1748881358590,0.20815048,104330.0,104320.0,1.74455324]
[1748881359094,0.20390094,104330.0,104320.0,1.74455324]
[1748881359690,0.20390094,104330.0,104320.0,1.74453022]
[1748881360193,0.20390094,104330.0,104320.0,1.85029389]
[1748881361497,0.20390094,104330.0,104320.0,1.4446867]
[1748881361813,0.20390094,104330.0,104320.0,1.7554797]
[1748881361991,0.20390094,104330.0,104320.0,1.80547514]
[1748881362292,1.03958303,104330.0,104320.0,1.54837007]
[1748881362589,0.88261444,104330.0,104320.0,1.27837007]
[1748881362988,0.88261444,104330.0,104320.0,1.27817007]
[1748881363701,0.88261444,104330.0,104320.0,1.27838418]
[1748881364096,0.88686398,104330.0,104320.0,1.27838418]
[1748881364687,0.88686398,104330.0,104320.0,0.83046418]
[1748881365000,0.88686398,104330.0,104320.0,1.22837463]
[1748881366196,0.52606398,104330.0,104320.0,1.22837463]
[1748881366595,0.52606398,104330.0,104320.0,0.93717463]
[1748881367098,0.88686398,104330.0,104320.0,0.93717463]
[1748881368094,1.11304533,104330.0,104320.0,0.38245463]
[1748881368301,1.11304533,104330.0,104320.0,0.83037463]
[1748881368493,1.11304533,104330.0,104320.0,0.78927463]
[1748881368690,1.31304533,104330.0,104320.0,0.78907463]
[1748881368902,1.31304533,104330.0,104320.0,0.78927463]
[1748881369902,1.31304533,104330.0,104320.0,0.83257463]
[1748881371306,1.30879579,104330.0,104320.0,0.83257463]
[1748881372194,1.10160121,104330.0,104320.0,0.83257463]
[1748881372500,1.10585075,104330.0,104320.0,0.83257463]
[1748881373303,1.10160121,104330.0,104320.0,0.83257463]
[1748881376000,1.30879579,104330.0,104320.0,0.83257463]
[1748881376402,1.31304533,104330.0,104320.0,0.83257463]
[1748881377308,1.30879579,104330.0,104320.0,0.83257463]
[1748881378308,1.31304533,104330.0,104320.0,0.83257463]
[1748881378907,1.31304533,104330.0,104320.0,0.38465463]
[1748881379110,1.39304533,104330.0,104320.0,0.55654263]
[1748881379312,1.39304533,104330.0,104320.0,0.74837403]
[1748881380001,1.4045414,104330.0,104320.0,0.01882263]
[1748881380304,1.4045414,104330.0,104290.0,0.40713897]
[1748881380305,2.62065848,104330.0,104290.0,0.40713897]
[1748881380510,0.75966268,104300.0,104290.0,0.8516993]
[1748881380806,0.75966268,104300.0,104290.0,0.90195055]
[1748881381007,0.75966268,104300.0,104290.0,0.8518993]
[1748881381008,0.99706345,104300.0,104290.0,0.8518993]
[1748881381212,0.99706345,104300.0,104290.0,0.8516993]
[1748881381514,0.99706345,104300.0,104290.0,0.8518993]
[1748881381906,0.99706345,104300.0,104290.0,0.8528993]
[1748881382407,1.09706345,104300.0,104290.0,0.8528993]
[1748881383112,0.88986887,104300.0,104290.0,0.9342993]
[1748881383309,0.88986887,104300.0,104290.0,0.9747993]
[1748881386109,0.76276887,104300.0,104290.0,1.18199388]
[1748881386524,0.57110077,104300.0,104290.0,1.18199388]
[1748881389111,0.76276887,104300.0,104290.0,1.18199388]
[1748881389707,0.76276887,104300.0,104290.0,0.9747993]
[1748881390305,0.84546887,104300.0,104290.0,0.9745993]
[1748881390616,0.89011841,104300.0,104290.0,0.9747993]
[1748881392715,0.89011841,104300.0,104290.0,0.5268793]
[1748881393034,1.09731299,104300.0,104290.0,0.7648793]
[1748881393218,1.09731299,104300.0,104290.0,0.7646793]
[1748881393414,1.09731299,104300.0,104290.0,0.3168793]
[1748881393719,1.29731299,104300.0,104290.0,0.7648793]
[1748881395845,1.09011841,104300.0,104290.0,0.7648793]
[1748881396124,1.29731299,104300.0,104290.0,0.7648793]
[1748881397314,1.09011841,104300.0,104290.0,0.7648793]
[1748881397515,1.29731299,104300.0,104290.0,0.7648793]
[1748881397719,1.29306345,104300.0,104290.0,0.7648793]
[1748881397919,1.29306345,104300.0,104290.0,0.7748793]
[1748881398428,1.08586887,104300.0,104290.0,0.7748793]
[1748881400715,1.09011841,104300.0,104290.0,0.7748793]
[1748881401513,1.29731299,104300.0,104290.0,0.7343793]
[1748881401712,1.29731299,104300.0,104290.0,0.7244193]
[1748881405722,1.09011841,104300.0,104290.0,0.7244193]
[1748881405924,1.29731299,104300.0,104290.0,0.7244193]
[1748881406524,1.29731299,104300.0,104290.0,0.93161388]
[1748881406525,0.96701841,104300.0,104290.0,0.93161388]
[1748881406730,0.96701821,104300.0,104290.0,0.99161388]
[1748881406920,0.96276867,104300.0,104290.0,1.31161388]
[1748881407618,0.96276867,104300.0,104290.0,1.42261149]
[1748881407925,0.96276867,104300.0,104290.0,1.37257036]
[1748881408719,0.96276867,104300.0,104290.0,1.16537578]
[1748881409030,0.96276867,104300.0,104290.0,1.21544082]
[1748881410430,0.77110077,104300.0,104290.0,1.4226354]
[1748881410927,0.77110077,104300.0,104290.0,0.57573102]
[1748881410928,0.96276867,104300.0,104290.0,0.57573102]
[1748881411128,0.96276867,104300.0,104290.0,0.58261454]
[1748881411129,1.18996325,104300.0,104290.0,0.58261454]
[1748881411327,1.06616867,104300.0,104290.0,0.5325495]
[1748881411519,1.27336325,104300.0,104290.0,0.5327495]
[1748881411719,1.27336325,104300.0,104290.0,0.5325495]
[1748881411920,1.27761279,104300.0,104290.0,0.7244358]
[1748881412119,1.27761279,104300.0,104290.0,0.7242358]
[1748881412319,1.27761279,104300.0,104290.0,0.7244358]
[1748881413723,1.07761279,104300.0,104290.0,0.7244358]
[1748881413920,1.27761279,104300.0,104290.0,0.7244358]
[1748881415129,1.27761279,104300.0,104290.0,0.2763958]
[1748881415329,1.27761279,104300.0,104290.0,0.7244358]
[1748881417634,0.91681279,104300.0,104290.0,0.7244358]
[1748881417838,1.63841279,104300.0,104290.0,0.7244358]
[1748881418835,1.43121821,104300.0,104290.0,0.7244358]
[1748881419249,0.1916863,104290.0,104280.0,0.13499853]
[1748881419543,1.22718088,104290.0,104280.0,0.01594]
[1748881419741,0.1917046,104280.0,104270.0,0.3464516]
[1748881420032,0.96479092,104280.0,104270.0,0.3608316]
[1748881420241,0.96479092,104280.0,104270.0,0.312903]
[1748881420662,0.96479092,104280.0,104270.0,0.761343]
[1748881420829,0.96479092,104280.0,104270.0,0.12118]
[1748881421034,1.06479092,104280.0,104270.0,0.761303]
[1748881422245,1.06479092,104280.0,104270.0,0.56958]
[1748881422445,1.06579092,104280.0,104270.0,0.761303]
[1748881422638,1.06579092,104280.0,104270.0,0.312903]
[1748881422832,1.06579092,104280.0,104270.0,0.12118]
[1748881423138,1.06579092,104280.0,104270.0,0.3129016]
[1748881423337,1.06579092,104280.0,104270.0,0.38794514]
[1748881423535,1.2729855,104280.0,104270.0,0.19622354]
[1748881423749,1.06579092,104280.0,104270.0,0.12118]
[1748881423936,1.14579092,104280.0,104270.0,0.12118]
[1748881424127,1.14579092,104280.0,104270.0,0.3128983]
[1748881424441,1.3529855,104280.0,104270.0,0.12138]
[1748881424832,1.3529855,104280.0,104270.0,0.3131]
[1748881425028,1.3529855,104280.0,104270.0,0.12138]
[1748881425233,1.3529855,104280.0,104270.0,0.3131]
[1748881425737,1.3529855,104280.0,104270.0,0.12138]
[1748881425940,1.5329855,104280.0,104270.0,0.12138]
[1748881426442,1.5329855,104280.0,104270.0,0.01458]
[1748881426639,1.5329855,104280.0,104270.0,0.12118]
[1748881426845,1.5329855,104280.0,104270.0,0.12138]
[1748881427244,1.5329855,104280.0,104270.0,0.01458]
[1748881427441,0.1917212,104270.0,104260.0,0.52511811]
[1748881427640,0.88471578,104270.0,104260.0,0.97415811]
[1748881427836,0.99417002,104270.0,104260.0,0.97415811]
[1748881428439,0.99417002,104270.0,104260.0,0.97615811]
[1748881428884,0.78697544,104270.0,104260.0,0.98943971]
[1748881429033,1.15247002,104270.0,104260.0,1.02943971]
[1748881429448,1.25247002,104270.0,104260.0,1.02943971]
[1748881430138,1.25247002,104270.0,104260.0,0.58977971]
[1748881430442,1.25247002,104270.0,104260.0,0.18409011]
[1748881430750,1.25247002,104270.0,104260.0,0.61365011]
[1748881431140,1.25247002,104270.0,104260.0,0.80358951]
[1748881431446,1.04627544,104270.0,104260.0,0.80158951]
[1748881431645,1.04627544,104270.0,104260.0,0.84348951]
[1748881431646,1.25347002,104270.0,104260.0,0.84348951]
[1748881432050,1.04627544,104270.0,104260.0,0.84348951]
[1748881432444,1.25347002,104270.0,104260.0,0.84348951]
[1748881434546,1.25347002,104270.0,104260.0,0.65175011]
[1748881434755,1.25347002,104270.0,104260.0,0.84348961]
[1748881435357,1.04627544,104270.0,104260.0,0.84348961]
[1748881435545,1.25347002,104270.0,104260.0,0.84348961]
[1748881435750,1.25347002,104270.0,104260.0,0.65175011]
[1748881436251,1.25347002,104270.0,104260.0,0.84348961]
[1748881437643,1.25347002,104270.0,104260.0,0.20219011]
[1748881437857,1.25347002,104270.0,104260.0,0.84460921]
[1748881438060,1.25347002,104270.0,104260.0,0.65287011]
[1748881438756,1.06174882,104270.0,104250.0,0.07824377]
[1748881438958,0.88493378,104260.0,104250.0,0.07824377]
[1748881439145,0.69731881,104260.0,104250.0,0.45114373]
[1748881439466,1.00836273,104260.0,104250.0,0.45114373]
[1748881439957,1.00836273,104260.0,104250.0,0.00034373]
[1748881439958,0.90116815,104260.0,104250.0,0.00034373]
[1748881440149,1.10836273,104260.0,104250.0,0.00034373]
[1748881440645,1.10836273,104260.0,104250.0,0.45526373]
[1748881440646,1.22836273,104260.0,104250.0,0.45526373]
[1748881440850,1.22836273,104260.0,104250.0,0.00434373]
[1748881441958,1.22836273,104260.0,104250.0,0.00936373]
[1748881442363,0.1917575,104250.0,104240.0,0.0439]
[1748881442552,0.1917759,104240.0,104230.0,0.39468372]
[1748881442744,0.88537048,104240.0,104230.0,0.99728372]
[1748881442957,0.98786127,104240.0,104230.0,0.23431072]
[1748881443153,0.98786127,104240.0,104230.0,0.49523072]
[1748881443657,0.98786127,104240.0,104230.0,0.04311072]
[1748881443855,1.03786127,104240.0,104230.0,0.00231072]
[1748881444057,1.33786127,104240.0,104230.0,0.00231072]
[1748881444282,1.33886127,104240.0,104230.0,0.01631072]
[1748881444452,1.34886127,104240.0,104230.0,0.01631072]
[1748881444657,1.35086127,104240.0,104230.0,0.21610502]
[1748881445154,1.34886127,104240.0,104230.0,0.01831072]
[1748881445547,1.34886127,104240.0,104230.0,0.01811072]
[1748881445859,1.34886127,104240.0,104230.0,0.01831072]
[1748881446455,1.34886127,104240.0,104230.0,0.21010472]
[1748881446456,1.14166669,104240.0,104230.0,0.21010472]
[1748881446650,1.34786127,104240.0,104230.0,0.00531072]
[1748881446860,1.34786127,104240.0,104230.0,0.19710472]
[1748881447056,1.34786127,104240.0,104230.0,0.19690472]
[1748881447257,1.34786127,104240.0,104230.0,0.19710472]
[1748881447759,1.14066669,104240.0,104230.0,0.19710472]
[1748881447952,1.34786127,104240.0,104230.0,0.19710472]
[1748881448761,1.34786127,104240.0,104230.0,0.00531072]
[1748881448952,1.34786127,104240.0,104230.0,0.19710472]
[1748881450661,1.34786127,104240.0,104230.0,0.19610472]
[1748881451274,1.34886127,104240.0,104230.0,0.19410472]
[1748881452063,1.34886127,104240.0,104230.0,0.88390472]
[1748881452064,1.03996669,104240.0,104230.0,0.88390472]
[1748881452257,1.03996669,104240.0,104230.0,0.96800472]
[1748881452852,0.95606669,104240.0,104230.0,1.1751993]
[1748881453049,0.40349079,104240.0,104230.0,1.74971048]
[1748881453261,0.40349079,104240.0,104230.0,1.78565889]
[1748881453262,0.59526639,104240.0,104230.0,1.78565889]
[1748881453465,0.59526639,104240.0,104230.0,1.21766431]
[1748881453669,0.95606639,104240.0,104230.0,0.77971883]
[1748881453870,1.20256097,104240.0,104230.0,1.21770431]
[1748881454168,0.99536639,104240.0,104230.0,1.18152317]
[1748881454362,0.99536639,104240.0,104230.0,1.16804472]
[1748881454865,0.59526639,104240.0,104230.0,1.16804472]
[1748881455164,0.59526639,104240.0,104230.0,1.52884472]
[1748881455364,0.59526639,104240.0,104230.0,1.16804472]
[1748881457362,0.59526639,104240.0,104230.0,1.45924472]
[1748881458162,0.59526639,104240.0,104230.0,1.45904472]
[1748881458363,0.40349079,104240.0,104230.0,2.0272393]
[1748881458560,0.40349079,104240.0,104230.0,1.7360393]
[1748881458866,0.39526639,104240.0,104230.0,1.7495562]
[1748881459053,0.39526639,104240.0,104230.0,1.7360393]
[1748881459258,0.20349079,104240.0,104230.0,1.7360393]
[1748881459460,0.20349079,104240.0,104230.0,1.74028884]
[1748881459665,0.20349079,104240.0,104230.0,1.74008884]
[1748881459856,0.20349079,104240.0,104230.0,1.74028884]
[1748881461658,0.20349079,104240.0,104230.0,1.7360393]
[1748881461961,0.20349079,104240.0,104230.0,1.78572812]
[1748881462163,0.20349079,104240.0,104230.0,1.79910116]
[1748881462357,0.20349079,104240.0,104230.0,1.86002632]
[1748881462559,0.20349079,104240.0,104230.0,1.84665325]
[1748881462960,0.20249079,104240.0,104230.0,1.86102599]
[1748881463163,0.20249079,104240.0,104230.0,1.84865325]
[1748881463761,0.20249079,104240.0,104230.0,1.86238618]
[1748881463958,0.20249079,104240.0,104230.0,1.84901325]
[1748881464268,0.20249079,104240.0,104230.0,2.14017325]
[1748881464870,0.20249079,104240.0,104230.0,1.67678954]
[1748881465171,0.20249079,104240.0,104230.0,1.88398412]
[1748881465473,0.20249079,104240.0,104230.0,1.2741353]
[1748881465673,0.20249079,104240.0,104230.0,1.8478339]
[1748881466068,0.20249079,104240.0,104230.0,1.8478431]
[1748881466370,0.20249079,104240.0,104230.0,1.8344953]
[1748881466556,0.20249079,104240.0,104230.0,1.84782843]
[1748881466800,0.20249079,104240.0,104230.0,1.8344953]
[1748881466962,0.20249079,104240.0,104230.0,1.89265744]
[1748881467161,0.20249079,104240.0,104230.0,1.92903117]
[1748881467559,0.20249079,104240.0,104230.0,1.38201341]
[1748881467765,0.20249079,104240.0,104230.0,1.92919117]
[1748881468566,0.20249079,104240.0,104230.0,1.94253159]
[1748881468759,0.20249079,104240.0,104230.0,2.00230133]
[1748881469167,0.20249079,104240.0,104230.0,1.79510675]
[1748881469367,0.20249079,104240.0,104230.0,2.01563748]
[1748881469569,0.20249079,104240.0,104230.0,2.0023157]
[1748881470065,0.20249079,104240.0,104230.0,2.01565307]
[1748881470270,0.20249079,104240.0,104230.0,2.0023157]
[1748881470673,0.20249079,104240.0,104230.0,2.0023557]
[1748881470901,0.20249079,104240.0,104230.0,2.01569032]
[1748881471075,0.20249079,104240.0,104230.0,2.0023557]
[1748881471676,0.20249079,104240.0,104230.0,1.4417957]
[1748881471980,0.20249079,104240.0,104230.0,2.01565124]
[1748881472177,0.20249079,104240.0,104230.0,2.01566177]
[1748881472368,0.20249079,104240.0,104230.0,1.89775344]
[1748881472565,0.20249079,104240.0,104230.0,1.2546644]
[1748881472869,0.20249079,104240.0,104230.0,1.80173744]
[1748881473373,0.20249079,104240.0,104230.0,1.85144601]
[1748881473573,0.20249079,104240.0,104230.0,1.80172175]
[1748881473763,0.20249079,104240.0,104230.0,1.81511128]
[1748881473968,0.20249079,104240.0,104230.0,1.80172175]
[1748881474769,0.20249079,104240.0,104230.0,1.81511122]
[1748881474972,0.20249079,104240.0,104230.0,1.87483191]
[1748881475276,0.20249079,104240.0,104230.0,1.88821762]
[1748881475478,0.20249079,104240.0,104230.0,1.87483191]
[1748881475669,0.20249079,104240.0,104230.0,1.8882167]
[1748881475975,0.20249079,104240.0,104230.0,1.87483191]
[1748881476179,0.20249079,104240.0,104230.0,1.8882186]
[1748881476384,0.20249079,104240.0,104230.0,1.87447191]
[1748881476673,0.20249079,104240.0,104230.0,1.91928392]
[1748881477271,0.20249079,104240.0,104230.0,1.91932152]
[1748881479988,0.39426619,104240.0,104230.0,1.15204694]
[1748881480184,0.28389079,104240.0,104230.0,1.91884152]
[1748881480375,0.28389079,104240.0,104230.0,1.84573136]
[1748881480776,0.28389079,104240.0,104230.0,1.85938428]
[1748881480982,0.28389079,104240.0,104230.0,1.84593136]
[1748881481171,0.47666619,104240.0,104230.0,1.8580269]
[1748881481373,0.47666619,104240.0,104230.0,1.93113706]
[1748881481580,0.47666619,104240.0,104230.0,1.8580269]
[1748881481975,0.47666619,104240.0,104230.0,1.86546695]
[1748881482178,0.47666619,104240.0,104230.0,1.86644905]
[1748881482382,0.47666619,104240.0,104230.0,1.91275312]
[1748881482582,0.51916619,104240.0,104230.0,1.91275312]
[1748881483101,0.51816619,104240.0,104230.0,1.90475312]
[1748881483298,0.51816619,104240.0,104230.0,1.94640484]
[1748881483510,0.51816619,104240.0,104230.0,1.93298784]
[1748881484400,0.51816619,104240.0,104230.0,1.97794591]
[1748881484597,0.51816619,104240.0,104230.0,1.99136291]
[1748881484906,0.51816619,104240.0,104230.0,1.88320956]
[1748881485093,0.51816619,104240.0,104230.0,1.99145457]
[1748881485399,0.51816619,104240.0,104230.0,1.41823756]
[1748881485700,0.51816619,104240.0,104230.0,1.97739756]
[1748881487105,0.51816619,104240.0,104230.0,1.97719756]
[1748881487702,0.51816619,104240.0,104230.0,2.00403156]
[1748881488193,0.51816619,104240.0,104230.0,1.99061456]
[1748881488395,0.51816619,104240.0,104230.0,2.00403072]
[1748881488590,0.51816619,104240.0,104230.0,1.99061456]
[1748881488795,0.51816619,104240.0,104230.0,1.89578656]
[1748881488996,0.51816619,104240.0,104230.0,1.94565637]
[1748881489195,0.51816619,104240.0,104230.0,1.88596323]
[1748881489398,0.51816619,104240.0,104230.0,1.87254621]
[1748881489595,0.32639079,104240.0,104230.0,1.87254621]
[1748881491195,0.32639079,104240.0,104230.0,1.88596314]
[1748881491397,0.32639079,104240.0,104230.0,1.87254621]
[1748881491610,0.32639079,104240.0,104230.0,1.94565637]
[1748881492110,0.32639079,104240.0,104230.0,1.96004637]
[1748881492299,0.32639079,104240.0,104230.0,1.90035313]
[1748881492498,0.32639079,104240.0,104230.0,1.88693621]
[1748881493013,0.32639079,104240.0,104230.0,1.88687363]
[1748881494210,0.32639079,104240.0,104230.0,1.90029057]
[1748881494409,0.32639079,104240.0,104230.0,1.90029056]
[1748881494612,0.32639079,104240.0,104230.0,1.88687363]
[1748881494912,0.32639079,104240.0,104230.0,1.90029057]
[1748881495103,0.32639079,104240.0,104230.0,1.90454011]
[1748881495310,0.32639079,104240.0,104230.0,1.88996317]
[1748881496308,0.32639079,104240.0,104230.0,1.68276859]
[1748881496499,0.32639079,104240.0,104230.0,1.88996317]
[1748881496724,0.28389079,104240.0,104230.0,1.84015594]
[1748881496914,0.28389079,104240.0,104230.0,1.89060153]
[1748881497707,0.47566619,104240.0,104230.0,1.33280153]
[1748881497915,0.47566619,104240.0,104230.0,1.22181711]
[1748881498123,0.47566619,104240.0,104230.0,1.63833719]
[1748881498507,0.47566619,104240.0,104230.0,1.63813719]
[1748881498705,0.47566619,104240.0,104230.0,1.63833719]
[1748881499705,0.47566619,104240.0,104230.0,1.63813719]
[1748881499905,0.47566619,104240.0,104230.0,1.63833719]
[1748881500307,0.28389079,104240.0,104230.0,1.84553177]
[1748881500520,0.47566629,104240.0,104230.0,1.33122836]